Cogmind - Beta 13 @@@ ROGUE MODE // 2024.05.04 @ 22:16:16 Player: paplal Result: Destroyed by G-34 Mercenary with Small Laser Performance ------------- Evolutions (0) 0 Regions Visited (1) 200 Robots Destroyed (7) 35 Value Destroyed (174) 174 Prototype IDs (0) 0 Alien Tech Used (0) 0 Bonus (0) 0 TOTAL SCORE: 409 Bonus ------- None Cogmind --------- Core Integrity 0/250 Matter 387/450 Energy 100/100 System Corruption 2% Temperature Cool (6) Movement Core (1400) Ox27 Location -10/Materials Parts ------- > --- POWER (1) -------- (None) > --- PROPULSION (2) --- (None) > --- UTILITY (2) ------ Huge Storage Unit Large Matter Pod > --- WEAPON (2) ------- (None) > --- INVENTORY (25) --- Light Ion Engine Light Treads Aluminum Leg Aluminum Leg Aluminum Leg Small Storage Unit Core Shielding Peak State ------------ > --- POWER ------------ Ion Engine > --- PROPULSION ------- Light Treads Light Treads > --- UTILITY ---------- (None) > --- WEAPON ----------- Assault Rifle > --- INVENTORY -------- Aluminum Leg Aluminum Leg Small Storage Unit [Rating: 4] Favorites ----------- Power Ion Engine Engine Ion Engine Propulsion Light Treads Treads Light Treads Utility Large Matter Pod Storage Large Matter Pod Weapon Beam Cannon Energy Cannon Beam Cannon Ballistic Gun Assault Rifle Build | -11 -10 ------- Run | Yrd Mat Slots Evolved . | . . Power . | . . Propulsion . | . . Utility . | . . Weapon . | . . Parts Attached 11 | 3 8 Power 1 | 1 . Engine 1 | 1 . Core . | . . Reactor . | . . Propulsion 6 | 2 4 Treads 6 | 2 4 Leg . | . . Wheel . | . . Hover . | . . Flight . | . . Utility 2 | . 2 Device . | . . Storage 2 | . 2 Processor . | . . Hackware . | . . Protection . | . . Artifact . | . . Weapon 2 | . 2 Energy Gun . | . . Energy Cannon 1 | . 1 Ballistic Gun 1 | . 1 Ballistic Cannon . | . . Launcher . | . . Special Weapon . | . . Impact Weapon . | . . Slashing Weapon . | . . Piercing Weapon . | . . Special Melee Weapon . | . . Unidentified Prototypes . | . . Parts Lost 2 | . 2 Power . | . . Propulsion 1 | . 1 Utility . | . . Weapon 1 | . 1 Highest Loss Streak 1 | . 1 To Critical Strikes . | . . Average Slot Usage (%) 42 | . 42 Engine 1 | . 1 Treads 14 | . 14 Storage 16 | . 16 Energy Cannon 8 | . 8 Naked Turns 7 | . 7 Heaviest Build 86 | 5 86 Greatest Support 40 | 40 40 Greatest Overweight (x) 28 | 1 28 Average Overweight (x) 1 | . 1 Largest Inventory Capacity 25 | 5 25 Average Capacity 15 | 5 16 Most Carried 7 | 5 7 Average Carried 5 | 3 5 Final Capacity 25 | 5 25 Final Carried 7 | 4 7 Class Distribution -------------------- 100% | Mutant Dominant Class ---------------- Mutant | -10/Materials Resources | -11 -10 ----------- Run | Yrd Mat Matter Collected 420 | 204 216 Remotely . | . . Salvage Created 216 | . 216 Parts 8 | . 8 Haulers Intercepted . | . . Recyclers Shooed . | . . Parts Field Recycled . | . . Retrieved Matter . | . . Parts Self-Destructed . | . . Prevented . | . . Kills | -11 -10 ------- Run | Yrd Mat Combat Hostiles Destroyed 6 | . 6 Guns 3 | . 3 Cannons 3 | . 3 Classes Destroyed 3 | . 3 Watcher 1 | . 1 Swarmer 3 | . 3 Grunt 3 | . 3 Best Kill Streak 4 | . 4 Combat Bots Only 3 | . 3 Max Kills in Single Turn 1 | . 1 Gunslinging . | . . Exploded . | . . Melee . | . . Uniques/NPCs Destroyed . | . . Combat | -11 -10 -------- Run | Yrd Mat Hostile Shots Fired 58 | . 58 Missed 14 | . 14 Damage Taken 544 | . 544 Core 258 | . 258 Absorbed by Shields . | . . Core Remaining (%) 100 | 100 . Volleys Fired 29 | . 29 Largest 1 | . 1 Hottest 60 | . 60 Shots Fired 29 | . 29 Gun 6 | . 6 Cannon 23 | . 23 Launcher . | . . Special . | . . Kinetic 6 | . 6 Thermal 23 | . 23 Explosive . | . . Electromagnetic . | . . Robot Hit Streak 11 | . 11 Robot Miss Streak 1 | . 1 Penetration Max . | . . Secondary Targets . | . . Shots Hit Robots 24 | . 24 Core Hits 9 | . 9 Critical Kills . | . . Critical Parts Destroyed . | . . Critical Strikes . | . . Melee Attacks . | . . Impact . | . . Slashing . | . . Piercing . | . . Sneak Attacks . | . . Combat Hostiles . | . . Follow-up Attacks . | . . Damage Inflicted 416 | . 416 Guns 68 | . 68 Cannons 348 | . 348 Explosions . | . . Melee . | . . Ramming . | . . Kinetic 68 | . 68 Thermal 348 | . 348 Explosive . | . . Electromagnetic . | . . Impact . | . . Slashing . | . . Piercing . | . . Highest Corruption 2 | . 2 Average Corruption 2 | . 2 Corruption Purged . | . . Corruption Blocked . | . . Effects 8 | . 8 Message Errors 2 | . 2 Matter Fused 2 | . 2 Heat Flow Errors 1 | . 1 Parts Fused 1 | . 1 Data Loss (minor) 1 | . 1 Data Loss (major) 1 | . 1 Overload Shots . | . . Overflow Damage . | . . Projectiles . | . . Explosions . | . . Melee . | . . Knockbacks . | . . Impact . | . . Kinetic . | . . Secondary . | . . Self-Inflicted Damage . | . . Shots . | . . Rammed . | . . Targets Rammed . | . . Kicked . | . . Crushed . | . . Highest Temperature 380 | . 380 Average Temperature 135 | . 135 Received Heat Transfer 261 | . 261 Siege Activations . | . . Robots Corrupted . | . . Combat Hostiles . | . . Parts Fried . | . . Impact Corruptions . | . . Robots Melted . | . . Combat Hostiles . | . . Parts Melted 6 | . 6 Heat Transferred 740 | . 740 Parts Sabotaged . | . . Parts Stolen . | . . Parts Stripped . | . . Power Chain Reactions . | . . Alert | -11 -10 ------- Run | Yrd Mat Peak Influence 92 | . 92 Initial . | . . Average 43 | . 46 Maximum Alert Level . | . . Low Security (%) 100 | 100 100 Level 1 . | . . Level 2 . | . . Level 3 . | . . Level 4 . | . . Level 5 . | . . High Security . | . . Max Security . | . . Squads Dispatched . | . . Investigation . | . . Extermination . | . . Reinforcement . | . . Assault . | . . Garrison . | . . Intercept . | . . Searches Triggered . | . . Construction Impeded . | . . Haulers Reinforced . | . . Active Scanning Responses . | . . Cargo Convoy Interrupts . | . . Stealth | -11 -10 --------- Run | Yrd Mat Distress Signals 2 | . 2 Communications Jammed . | . . Distress Signals . | . . Times Spotted 13 | . 13 Peak Tracking Total 4 | . 4 Tactical Retreats 1 | . 1 Traps | -11 -10 ------- Run | Yrd Mat Traps Triggered 5 | . 5 Indirectly . | . . Trap Hack Attempts . | . . Triggered . | . . Disarmed . | . . Reprogrammed . | . . Reused . | . . Traps Extracted . | . . Installed . | . . Triggered . | . . Machines | -11 -10 ---------- Run | Yrd Mat Machines Disabled . | . . Max in Single Turn . | . . Machines Repaired . | . . Machines Dismantled . | . . Machines Sabotaged . | . . Overloaded Fab Kills . | . . Hacking | -11 -10 --------- Run | Yrd Mat Machines Accessed 3 | . 3 Terminals 3 | . 3 Fabricators . | . . Repair Stations . | . . Recycling Units . | . . Scanalyzers . | . . Garrison Access . | . . Total Hacks 4 | . 4 Successful 2 | . 2 Failed 2 | . 2 Catastrophic . | . . Database Lockouts . | . . Manual . | . . Terminals 4 | . 4 Fabricators . | . . Repair Stations . | . . Recycling Units . | . . Scanalyzers . | . . Garrison Access . | . . Terminal Hacks 2 | . 2 Alert Level 1 | . 1 Dispatch Records 1 | . 1 Fabricator Hacks . | . . Repair Station Hacks . | . . Recycling Unit Hacks . | . . Scanalyzer . | . . Garrison Access Hacks . | . . Unauthorized Hacks . | . . Terminals . | . . Fabricators . | . . Repair Stations . | . . Recycling Units . | . . Scanalyzers . | . . Garrison Access . | . . Data Cores Recovered . | . . Used . | . . Hacking Detections 1 | . 1 Full Trace Events . | . . Feedback Events . | . . Feedback Blocked . | . . Robot Schematics Acquired . | . . Robots Built . | . . Authchips . | . . Time . | . . Total Robot Build Rating . | . . Part Schematics Acquired . | . . Parts Built . | . . Authchips . | . . Time . | . . Total Part Build Rating . | . . Parts Repaired . | . . Time . | . . Parts Recycled . | . . Recycled Matter . | . . Retrieved Matter . | . . Retrieved Components . | . . Parts Scanalyzed . | . . Part Schematics Acquired . | . . Parts Damaged . | . . Bothacking | -11 -10 ------------ Run | Yrd Mat Used RIF Installer . | . . Robots Hacked . | . . Non-combat . | . . Combat . | . . Robot Hacks Applied . | . . Relay Couplers Released . | . . Fabnet Peak Effective % . | . . Robots Rewired . | . . Allies Hacked . | . . Hacks Repelled . | . . Allies | -11 -10 -------- Run | Yrd Mat Total Allies . | . . Largest Group . | . . Highest-Rated Group . | . . Highest-Rated Ally . | . . Total Orders . | . . Ally Attacks . | . . Total Damage . | . . Kills . | . . Allies Corrupted . | . . Allies Melted . | . . Intel | -11 -10 ------- Run | Yrd Mat Robot Analysis Total . | . . Derelict Logs Recovered . | . . Drone Launches . | . . Drone Recoveries . | . . Exploration | -11 -10 ------------- Run | Yrd Mat Turns Passed 1002 | 68 934 Spaces Moved 366 | 49 317 Core 37 | 22 15 Treads 329 | 27 302 Legs . | . . Wheels . | . . Hover . | . . Flight . | . . Fastest Speed 50 | 50 50 Average Speed 250 | 120 270 Slowest Speed 1450 | 160 1450 Overloaded Moves . | . . Propulsion Burnouts . | . . Robots Hopped . | . . Cave-ins Triggered . | . . Exploration Rate (%) 25 | 3 47 Regions Visited 1 Branch Regions . Pre-discovered Areas . | . . Known Exits Taken . | . . Unknown Exits Taken 1 | 1 . Scrap Searched . | . . Spaces Dug . | . . Terrain Destroyed . | . . Melee . | . . Projectile . | . . AOE . | . . Terrain Rammed . | . . Walls Destroyed . | . . Machines Disabled . | . . Actions | -11 -10 --------- Run | Yrd Mat Total 419 | 57 362 Wait 3 | . 3 Move 365 | 48 317 Hop . | . . Pick Up 11 | 6 5 Fast Attach 7 | 1 6 Attach 4 | 2 2 Detach . | . . Swap . | . . Drop . | . . Fire 29 | . 29 Melee . | . . Ram . | . . Kick . | . . Crush . | . . Escape Stasis . | . . Rewire . | . . Trap . | . . Miscellaneous . | . . Route ------- -11/Scrapyard -10/Materials (discovered 1 exit: [*Mat]) History --------- Turn | Location | Event 17 | -11/Scrapyard | Discovered new exit (range 15) 69 | -11/Scrapyard | Entered Materials 315 | -10/Materials | Build established: Mutant 815 | -10/Materials | Discovered new exit (range 4) 860 | -10/Materials | Core integrity fell below 50% 983 | -10/Materials | Core integrity fell below 20% 1003 | -10/Materials | Destroyed by G-34 Mercenary with Small Laser Last Messages --------------- Current Alert Level: Low Security 00767_ Connecting with Terminal... 00769_ System corrupted: Beam Cannon fused. 00815_ EXIT=FOUND 00817_ System corrupted: Matter fused (-10). 00830_ W-16 Scout sends out distress signal. 00852_ CLD /,>2W1=ZDM|3KB1CDZ 00856_ Lgt. Treads destroyed. 00862_ Lgt. Nuclear Core melted. 00862_ Aluminum Leg melted. 00862_ G-47 Trooper destroyed. 00887_ Aluminum Leg melted. 00887_ Ion Engine melted. 00887_ G-34 Mercenary destroyed. 00892_ K-01 Serf collects debris. 00917_ R-06 Scavenger collects Aluminum Leg. 00918_ Acquired 47 matter. 00924_ System corrupted: Matter fused (-5). 00932_ Acquired 41 matter. 00980_ Beam Cannon destroyed. Map ----- +----------------------------------------------------+ | !#????####+##### # #????? | | ### !#???????# # #????? | | ??# !#???????# ##### #### #########????? | | ??# !##???????# #??##/####+##???????????? | | ### ####????#####+#### #???????????? | | ## #???????# # """ #???????????? | | ## ##??????# ! # """""#???????????? | | # ######## # """""#???????????? | | # # # """""#???????????? | | + + # """ #???????????? | | # # # [ #???????????? | | # ###/#### # #???????????? | | ## #### ?# # #???????????? | | ## #??# ## #####+####?#####?????? | | ### #??# ############?# #####"T"######? | | ??# #??# "?" #?# #?# # #? | | ??# #??# "?" #?# #?# # """ #? | | ??# #??# "?" #?# #?# + """ #? | | ??# #??# ? #?# #?# # """ #? | | ??# ???# ??? #?# #?# # "T" #? | | ??# ???????????# #?# #######"Y"####? | | ??? ???????????# #?# #??"""#???? | | ??? ???????????# ###g < #??####???? | | ??? ???????????# + #?????????? | | ???????????????#####+#### ######?????????? | | ?????????? @ #??????????????? | | ???????????# ### #??????????????? | | ???????????# w k ??# #??????????????? | | ???????????k^ #####/###+??#+#??????????????? | | ??????????????????# ??? ???????????????????? | | ??????????????????#????""???????????????????? | | ???????????????????????""???????????????????? | | ??????????????????????""????????????????????? | | ????????????????????????????????????????????? | | ????????????????????????????????????????????? | | ????????????????????????????????????????????? | | ????????????????????????????????????????????? | | ????????????????????????????????????????????? | | ????????????????????????????????????????????? | | ????????????????????????????????????????????? | | ????????????????????????????????????????????? | | ????????????????????????????????????????????? | | ????????????????????????????????????????????? | | ????????????????????????????????????????????? | | ????????????????????????????????????????????? | | ????????????????????????????????????????????? | | ????????????????????????????????????????????? | | ????????????????????????????????????????????? | | ????????????????????????????????????????????? | | ????????????????????????????????????????????? | +----------------------------------------------------+ Best States ------------- Heat Dissipation 25 Energy Generation 10 Energy Capacity 250 Matter Stores 387 Matter Capacity 450 Sight Range 16 Terrain Scan Density 10 Evasion (%) 50 Recoil Reduction 2 Item Schematics ----------------- None Robot Schematics ------------------ None Fabricated ------------ Nothing Alien Tech Used ----------------- None Achievements -------------- None Challenges ------------ None Game ------ Seed ExplosiveMetafiberBox Manual? 0 Play Time 00:07:26 Cumulative 10.4 hours Start 2024.05.04 @ 22:12:07 End 2024.05.04 @ 22:16:16 Sessions 1 Manual Loads 0 Difficulty Rogue Special Mode None Game No. 15 Rogue 15 Adventurer 0 Explorer 0 Win Type - Total 0 Types 0/0/0/0/0/0/0/0/0 Lore% 12 Gallery% 16 Achievement% 15 Wizard Run 0 Options --------- Layout 2 ASCII 0 Keyboard 0 Movement Mouse Keybinds 0 Fullscreen 1 Font 48/Smallcaps Map View 25x22 Zoom Use 100% Tactical HUD 1 Map Filters NONE Filters NONE Steam 1 RUN: d052ceb6-96eb-437e-ba36-6c400fc4b763